[Event "ROU-chT 1st League 2019"]
[Site "Mamaia"]
[Date "2019.09.28"]
[Round "8.16"]
[White "Pisu, Robert-Daniel"]
[Black "Barzanu, Iulian"]
[Result "0-1"]
[ECO "B07"]
[WhiteElo "2244"]
[BlackElo "2187"]
[Annotator "NA"]
[PlyCount "80"]
[EventDate "2019.09.21"]
[EventType "team-tourn"]
[EventCountry "ROU"]
[SourceTitle "playchess.com"]
[Source "ChessBase"]
[SourceQuality "1"]
[TimeControl "40/5400+30:1800+30"]

1. d4 {[%emt 0:00:00]} d6 {[%emt 0:00:00]} 2. e4 {[%emt 0:00:00]} Nf6 {[%emt 0:00:40]} 3. Nc3 {[%emt 0:00:00]} g6 {[%emt 0:00:18]} 4. Be3 {[%emt 0:00:36]} c6 {[%emt 0:02:14]} 5. Nf3 {[%emt 0:00:29]} Bg7 {[%emt 0:00:40]} 6. Qd2 {[%emt 0:00:30]} O-O {[%emt 0:05:06]} 7. Bh6 {[%emt 0:01:17]} Nbd7 {[%emt 0:17:45]} 8. O-O-O {[%emt 0:08:38]} Qa5 {[%emt 0:07:49]} 9. Bd3 {[%emt 0:14:31]} e5 {[%emt 0:04:41]} 10. Bxg7 {[%emt 0:03:29]} Kxg7 {[%emt 0:00:12]} 11. h4 {[%emt 0:00:09]} h5 {[%emt 0:14:25]} 12. dxe5 {[%emt 0:15:58]} dxe5 {[%emt 0:00:42]} 13. Ng5 {[%emt 0:00:48]} Qc5 {[%emt 0:08:19]} 14. f3 {[%emt 0:03:13]} b5 {[%emt 0:03:53]} 15. g4 {[%emt 0:07:42]} Rh8 {[%emt 0:00:36]} 16. gxh5 {[%emt 0:07:37]} Nxh5 {[%emt 0:01:14]} 17. Ne2 {[%emt 0:03:42]} Ndf6 {[%emt 0:02:11]} 18. Rdg1 {[%emt 0:02:24]} Qd6 {[%emt 0:03:07]} 19. Nxf7 {[%emt 0:10:44]} Kxf7 {[%emt 0:03:36]} 20. Bc4+ {[%emt 0:00:06]} Ke7 {[%emt 0:00:08]} 21. Qxd6+ {[%emt 0:03:16]} Kxd6 {[%emt 0:00:02]} 22. Bf7 {[%emt 0:00:08]} Be6 {[%emt 0:12:01]} 23. Bxg6 {[%emt 0:00:20]} Rag8 {[%emt 0:01:50]} 24. Rg5 {[%emt 0:02:29]} Ke7 {[%emt 0:03:05]} 25. Rhg1 {[%emt 0:03:54]} Nf4 {[%emt 0:02:34]} 26. Nxf4 {[%emt 0:00:41]} exf4 {[%emt 0:00:02]} 27. h5 {[%emt 0:00:10]} Nd7 {[%emt 0:02:24]} 28. a4 {[%emt 0:05:07]} a6 {[%emt 0:00:08]} 29. Kd2 {[%emt 0:00:46]} Kf6 {[%emt 0:01:27]} 30. Ke2 {[%emt 0:05:13]} Ne5 {[%emt 0:00:13]} 31. R5g2 {[%emt 0:00:16]} Rh6 {[%emt 0:00:41]} 32. axb5 {[%emt 0:00:31]} axb5 {[%emt 0:00:09]} 33. Kf2 {[%emt 0:01:07]} Nxg6 {[%emt 0:02:24]} 34. hxg6 {[%emt 0:00:30]} Rhxg6 {[%emt 0:00:12]} 35. Rxg6+ {[%emt 0:00:15]} Rxg6 {[%emt 0:00:05]} 36. Ra1 {[%emt 0:00:03]} Bh3 {[%emt 0:00:50]} 37. Ke2 {[%emt 0:00:19]} Rg2+ {[%emt 0:00:34]} 38. Kd3 {[%emt 0:00:02]} Rf2 {[%emt 0:00:17]} 39. Ra6 {[%emt 0:00:06]} Bd7 {[%emt 0:01:01]} 40. Ra7 {[%emt 0:00:00]} Ke5 {Kd4+} 0-1

[Event "ROU-chT 1st League 2019"]
[Site "Mamaia"]
[Date "2019.09.28"]
[Round "8.17"]
[White "Prodileanu, Adrian"]
[Black "Ghimpu, Samuel-Timotei"]
[Result "1/2-1/2"]
[ECO "A14"]
[WhiteElo "2236"]
[BlackElo "2158"]
[Annotator "NA"]
[PlyCount "52"]
[EventDate "2019.09.21"]
[EventType "team-tourn"]
[EventCountry "ROU"]
[SourceTitle "playchess.com"]
[Source "ChessBase"]
[SourceQuality "1"]
[TimeControl "40/5400+30:1800+30"]

1. c4 {[%emt 0:00:00]} Nf6 {[%emt 0:00:00]} 2. g3 {[%emt 0:00:00]} e6 {[%emt 0:00:00]} 3. Bg2 {[%emt 0:00:13]} d5 {[%emt 0:00:00]} 4. Nf3 {[%emt 0:00:24]} Be7 {[%emt 0:00:01]} 5. O-O {[%emt 0:00:24]} O-O {[%emt 0:00:05]} 6. d4 {[%emt 0:00:35]} dxc4 {[%emt 0:00:05]} 7. Qc2 {[%emt 0:01:36]} a6 {[%emt 0:00:05]} 8. Qxc4 {[%emt 0:01:31]} b5 {[%emt 0:00:00]} 9. Qc2 {[%emt 0:00:10]} Bb7 {[%emt 0:00:01]} 10. Bg5 {[%emt 0:01:20]} Nbd7 {[%emt 0:00:05]} 11. Bxf6 {[%emt 0:00:47]} Bxf6 {[%emt 0:01:54]} 12. Ng5 {[%emt 0:11:40]} Bxg5 {[%emt 0:00:32]} 13. Bxb7 {[%emt 0:00:08]} Rb8 {[%emt 0:07:46]} 14. Bc6 {[%emt 0:11:04]} Nb6 {[%emt 0:06:19]} 15. Rd1 {[%emt 0:10:13]} Nd5 {[%emt 0:00:20]} 16. Bxd5 {[%emt 0:06:48]} exd5 {[%emt 0:01:54]} 17. e3 {[%emt 0:08:59]} Re8 {[%emt 0:14:08]} 18. Nd2 {[%emt 0:00:25]} Be7 {[%emt 0:04:05]} 19. Rdc1 {[%emt 0:03:46]} Bd6 {[%emt 0:00:17]} 20. Qf5 {[%emt 0:04:30]} Bb4 {[%emt 0:04:24]} 21. Nb3 {[%emt 0:01:16]} Rb6 {[%emt 0:00:52]} 22. Rc2 {[%emt 0:05:39]} Rf6 {[%emt 0:01:45]} 23. Qd3 {[%emt 0:01:26]} Qd7 {[%emt 0:22:29]} 24. Rac1 {[%emt 0:01:33]} Bd6 {[%emt 0:00:07]} 25. a3 {[%emt 0:04:17]} h5 {[%emt 0:00:24]} 26. Nc5 {[%emt 0:10:23]} Bxc5 {[%emt 0:26:50]} 1/2-1/2

[Event "ROU-chT 1st League 2019"]
[Site "Mamaia"]
[Date "2019.09.28"]
[Round "8.18"]
[White "Coca, Cristi-Iulian"]
[Black "Jiroveanu, George"]
[Result "1-0"]
[ECO "B03"]
[WhiteElo "2106"]
[BlackElo "2241"]
[Annotator "NA"]
[PlyCount "119"]
[EventDate "2019.09.21"]
[EventType "team-tourn"]
[EventCountry "ROU"]
[SourceTitle "playchess.com"]
[Source "ChessBase"]
[SourceQuality "1"]
[TimeControl "40/5400+30:1800+30"]

1. e4 {[%emt 0:00:00]} Nf6 {[%emt 0:00:00]} 2. e5 {[%emt 0:00:00]} Nd5 {[%emt 0:00:00]} 3. d4 {[%emt 0:00:00]} d6 {[%emt 0:00:00]} 4. exd6 {[%emt 0:00:00]} cxd6 {[%emt 0:00:00]} 5. c4 {[%emt 0:00:00]} Nb6 {[%emt 0:00:00]} 6. Nc3 {[%emt 0:00:00]} Bf5 {[%emt 0:02:40]} 7. Be3 {[%emt 0:01:14]} e6 {[%emt 0:00:28]} 8. Rc1 {[%emt 0:01:17]} Be7 {[%emt 0:01:16]} 9. Nf3 {[%emt 0:00:32]} O-O {[%emt 0:00:08]} 10. Be2 {[%emt 0:01:16]} Nc6 {[%emt 0:14:43]} 11. b3 {[%emt 0:02:55]} d5 {[%emt 0:00:19]} 12. c5 {[%emt 0:00:39]} Nc8 {[%emt 0:00:06]} 13. O-O {[%emt 0:01:19]} Bf6 {[%emt 0:02:18]} 14. Qd2 {[%emt 0:09:30]} Bg4 {[%emt 0:08:41]} 15. Ne1 {[%emt 0:08:26]} Bxe2 {[%emt 0:01:22]} 16. Nxe2 {[%emt 0:00:10]} b6 {[%emt 0:06:49]} 17. b4 {[%emt 0:10:14]} bxc5 {[%emt 0:00:29]} 18. bxc5 {[%emt 0:03:46]} Na5 {[%emt 0:06:55]} 19. Bf4 {[%emt 0:05:38]} Nc4 {[%emt 0:05:56]} 20. Qb4 {[%emt 0:01:44]} Ne7 {[%emt 0:01:44]} 21. Nf3 {[%emt 0:04:48]} Nc6 {[%emt 0:03:40]} 22. Qa4 {[%emt 0:04:12]} Rc8 {[%emt 0:01:47]} 23. Rb1 {[%emt 0:06:24]} Re8 {[%emt 0:08:25]} 24. Rfd1 {[%emt 0:02:57]} h6 {[%emt 0:02:35]} 25. h3 {[%emt 0:06:04]} g5 {[%emt 0:02:34]} 26. Bg3 {[%emt 0:00:35]} Bg7 {[%emt 0:00:25]} 27. Nd2 {[%emt 0:05:30]} N4a5 {[%emt 0:06:22]} 28. Rb5 {[%emt 0:12:21]} Re7 {[%emt 0:04:06]} 29. Rdb1 {[%emt 0:02:57]} Rd7 {[%emt 0:01:28]} 30. Bd6 {[%emt 0:02:21]} Bf8 {[%emt 0:01:21]} 31. Bh2 {[%emt 0:01:14]} Nc4 {[%emt 0:05:49]} 32. Nxc4 {[%emt 0:01:28]} dxc4 {[%emt 0:00:06]} 33. Qxc4 {[%emt 0:01:26]} Nxd4 {[%emt 0:00:13]} 34. Nxd4 {[%emt 0:02:41]} Rxd4 {[%emt 0:00:05]} 35. Qe2 {[%emt 0:01:08]} Bxc5 {[%emt 0:00:56]} 36. Bg3 {[%emt 0:01:48]} Bb6 {[%emt 0:01:24]} 37. Qh5 {[%emt 0:00:27]} Qf8 {[%emt 0:03:36]} 38. h4 {[%emt 0:00:54]} f6 {[%emt 0:01:59]} 39. hxg5 {[%emt 0:00:00]} hxg5 {[%emt 0:00:00]} 40. Rxg5+ {[%emt 0:00:00]} fxg5 {[%emt 0:00:00]} 41. Qg6+ {[%emt 0:06:09]} Qg7 {[%emt 0:00:52]} 42. Qxe6+ {[%emt 0:00:04]} Kh7 {[%emt 0:03:59]} 43. Qxc8 {[%emt 0:01:02]} Qd7 {[%emt 0:00:11]} 44. Qc2+ {[%emt 0:00:52]} Kh6 {[%emt 0:00:50]} 45. Qe2 {[%emt 0:07:54]} Qg4 {[%emt 0:22:01]} 46. Qe8 {[%emt 0:14:10]} Rd1+ {[%emt 0:00:17]} 47. Rxd1 {[%emt 0:00:05]} Qxd1+ {[%emt 0:00:04]} 48. Kh2 {[%emt 0:00:05]} Qh5+ {[%emt 0:01:34]} 49. Qxh5+ {[%emt 0:00:05]} Kxh5 {[%emt 0:00:03]} 50. Kg1 {[%emt 0:00:27]} Kg4 {[%emt 0:00:23]} 51. Kf1 {[%emt 0:00:05]} Kf5 {[%emt 0:00:01]} 52. Ke2 {[%emt 0:00:28]} Ke4 {[%emt 0:00:54]} 53. f3+ {[%emt 0:00:30]} Kd5 {[%emt 0:00:11]} 54. Bf2 {[%emt 0:01:05]} Bd4 {[%emt 0:01:07]} 55. Bxd4 {[%emt 0:00:51]} Kxd4 {[%emt 0:00:04]} 56. g3 {[%emt 0:00:20]} a5 {[%emt 0:01:27]} 57. a4 {[%emt 0:04:14]} Kc4 {[%emt 0:00:39]} 58. f4 {[%emt 0:01:18]} gxf4 {[%emt 0:00:27]} 59. gxf4 {[%emt 0:00:17]} Kd5 {[%emt 0:00:15]} 60. Kd3 {[%emt 0:00:34] Ke4+ Kxe4} 1-0

[Event "ROU-chT 1st League 2019"]
[Site "Mamaia"]
[Date "2019.09.28"]
[Round "8.19"]
[White "Istratescu, Andrei"]
[Black "Erdos, Viktor"]
[Result "1/2-1/2"]
[ECO "A48"]
[WhiteElo "2556"]
[BlackElo "2604"]
[Annotator "ChessBase"]
[PlyCount "20"]
[EventDate "2019.09.21"]
[EventType "team-tourn"]
[EventCountry "ROU"]
[SourceTitle "playchess.com"]
[Source "ChessBase"]
[SourceQuality "1"]
[TimeControl "40/5400+30:1800+30"]

1. d4 {[%emt 0:00:00]} Nf6 {[%emt 0:05:41]} 2. Nf3 {[%emt 0:00:00]} g6 {[%emt 0:00:05]} 3. Bg5 {[%emt 0:00:11]} Bg7 {[%emt 0:00:07]} 4. Nbd2 {[%emt 0:00:06]} O-O {[%emt 0:00:08]} 5. c3 {[%emt 0:00:09]} d6 {[%emt 0:00:07]} 6. e4 {[%emt 0:00:23]} h6 {[%emt 0:00:42]} 7. Bh4 {[%emt 0:00:20]} c5 {[%emt 0:00:08]} 8. dxc5 {[%emt 0:00:30]} dxc5 {[%emt 0:00:05]} 9. Bc4 {[%emt 0:00:05]} Nc6 {[%emt 0:00:09]} 10. O-O {[%emt 0:00:25]} Nh5 {[%emt 0:00:26]} 1/2-1/2

[Event "ROU-chT 1st League 2019"]
[Site "Mamaia"]
[Date "2019.09.28"]
[Round "8.20"]
[White "Gonda, Laszlo"]
[Black "Aczel, Gergely"]
[Result "1/2-1/2"]
[ECO "E01"]
[WhiteElo "2541"]
[BlackElo "2530"]
[Annotator "ChessBase"]
[PlyCount "24"]
[EventDate "2019.09.21"]
[EventType "team-tourn"]
[EventCountry "ROU"]
[SourceTitle "playchess.com"]
[Source "ChessBase"]
[SourceQuality "1"]
[TimeControl "40/5400+30:1800+30"]

1. d4 {[%emt 0:05:30]} Nf6 {[%emt 0:00:00]} 2. c4 {[%emt 0:00:04]} e6 {[%emt 0:00:00]} 3. g3 {[%emt 0:00:04]} d5 {[%emt 0:00:00]} 4. Bg2 {[%emt 0:00:09]} Bb4+ {[%emt 0:00:00]} 5. Nd2 {[%emt 0:00:04]} O-O {[%emt 0:00:26]} 6. Ngf3 {[%emt 0:00:12]} b6 {[%emt 0:00:24]} 7. O-O {[%emt 0:00:16]} Bb7 {[%emt 0:00:05]} 8. b3 {[%emt 0:00:16]} c5 {[%emt 0:00:24]} 9. Bb2 {[%emt 0:03:24]} Qe7 {[%emt 0:00:08]} 10. a3 {[%emt 0:08:28]} Bxd2 {[%emt 0:00:03]} 11. Nxd2 {[%emt 0:00:06]} cxd4 {[%emt 0:00:08]} 12. Bxd4 {[%emt 0:07:30]} e5 {[%emt 0:00:11]} 1/2-1/2

[Event "ROU-chT 1st League 2019"]
[Site "Mamaia"]
[Date "2019.09.28"]
[Round "8.21"]
[White "Miron, Lucian-Costin"]
[Black "Grigore, George-Gabriel"]
[Result "1-0"]
[ECO "B31"]
[WhiteElo "2490"]
[BlackElo "2491"]
[Annotator "ChessBase"]
[PlyCount "133"]
[EventDate "2019.09.21"]
[EventType "team-tourn"]
[EventCountry "ROU"]
[SourceTitle "playchess.com"]
[Source "ChessBase"]
[SourceQuality "1"]
[TimeControl "40/5400+30:1800+30"]

1. e4 {[%emt 0:04:32]} c5 {[%emt 0:00:09]} 2. Nf3 {[%emt 0:00:11]} Nc6 {[%emt 0:00:06]} 3. Bb5 {[%emt 0:00:03]} g6 {[%emt 0:00:47]} 4. Bxc6 {[%emt 0:00:18]} bxc6 {[%emt 0:00:30]} 5. O-O {[%emt 0:00:16]} Bg7 {[%emt 0:00:13]} 6. Re1 {[%emt 0:00:19]} f6 {[%emt 0:00:26]} 7. c3 {[%emt 0:02:39]} d6 {[%emt 0:03:39]} 8. d4 {[%emt 0:04:46]} cxd4 {[%emt 0:00:24]} 9. cxd4 {[%emt 0:00:23]} Nh6 {[%emt 0:00:19]} 10. Nc3 {[%emt 0:00:49]} O-O {[%emt 0:00:21]} 11. h3 {[%emt 0:00:09]} Nf7 {[%emt 0:01:08]} 12. Be3 {[%emt 0:00:14]} Bd7 {[%emt 0:07:04]} 13. Qc2 {[%emt 0:02:26]} Qa5 {[%emt 0:02:44]} 14. Rac1 {[%emt 0:03:05]} Qh5 {[%emt 0:02:08]} 15. Ne2 {[%emt 0:06:35]} Qa5 {[%emt 0:00:47]} 16. Nc3 {[%emt 0:02:19]} Qh5 {[%emt 0:02:42]} 17. Ne2 {[%emt 0:00:05]} Qa5 {[%emt 0:00:25]} 18. b3 {[%emt 0:02:27]} Rfc8 {[%emt 0:03:36]} 19. Ng3 {[%emt 0:10:04]} Qb5 {[%emt 0:03:15]} 20. h4 {[%emt 0:04:25]} e5 {[%emt 0:32:48]} 21. h5 {[%emt 0:05:43]} g5 {[%emt 0:08:01]} 22. dxe5 {[%emt 0:05:37]} dxe5 {[%emt 0:00:35]} 23. Nd2 {[%emt 0:00:11]} Be6 {[%emt 0:01:18]} 24. Nc4 {[%emt 0:18:47]} Bf8 {[%emt 0:01:24]} 25. Qe2 {[%emt 0:01:34]} Be7 {[%emt 0:12:52]} 26. Qf3 {[%emt 0:03:18]} Rd8 {[%emt 0:04:21]} 27. Nf5 {[%emt 0:02:29]} Bf8 {[%emt 0:00:24]} 28. Rc2 {[%emt 0:05:54]} Rd7 {[%emt 0:00:49]} 29. Ng3 {[%emt 0:08:48]} Be7 {[%emt 0:00:56]} 30. Nf5 {[%emt 0:00:05]} Bf8 {[%emt 0:00:08]} 31. Rec1 {[%emt 0:01:16]} Rad8 {[%emt 0:02:10]} 32. Ng3 {[%emt 0:00:16]} Be7 {[%emt 0:01:04]} 33. Nf5 {[%emt 0:00:43]} Bf8 {[%emt 0:00:11]} 34. Kh2 {[%emt 0:01:54]} Rc7 {[%emt 0:00:36]} 35. Nb2 {[%emt 0:01:30]} c5 {[%emt 0:04:05]} 36. Nc4 {[%emt 0:01:05]} Qa6 {[%emt 0:00:21]} 37. Nd2 {[%emt 0:01:52]} Rdc8 {[%emt 0:00:54]} 38. Kg1 {[%emt 0:00:46]} Rd8 {[%emt 0:02:24]} 39. Nf1 {[%emt 0:00:46]} Rdc8 {[%emt 0:00:34]} 40. Nh2 {[%emt 0:00:00]} Bxf5 {[%emt 0:00:00]} 41. Qxf5 {[%emt 0:04:21]} Nh6 {[%emt 0:06:55]} 42. Qf3 {[%emt 0:01:04]} Qe6 {[%emt 0:00:42]} 43. Rc4 {[%emt 0:02:14]} Rc6 {[%emt 0:00:58]} 44. Qe2 {[%emt 0:02:04]} Kg7 {[%emt 0:01:40]} 45. Ra4 {[%emt 0:06:52]} R8c7 {[%emt 0:01:00]} 46. Rac4 {[%emt 0:00:37]} Qe8 {[%emt 0:04:01]} 47. Nf1 {[%emt 0:00:34]} Qe6 {[%emt 0:03:23]} 48. Ng3 {[%emt 0:01:13]} Be7 {[%emt 0:00:42]} 49. Qc2 {[%emt 0:07:13]} Rd7 {[%emt 0:06:56]} 50. b4 {[%emt 0:04:10]} Ra6 {[%emt 0:02:11]} 51. Bxc5 {[%emt 0:01:46]} Bxc5 {[%emt 0:02:12]} 52. bxc5 {[%emt 0:00:05]} Rc6 {[%emt 0:00:06]} 53. Rc3 {[%emt 0:00:43]} Qe7 {[%emt 0:01:06]} 54. Qe2 {[%emt 0:01:05]} Qd8 {[%emt 0:03:01]} 55. Nf1 {[%emt 0:01:02]} Rd4 {[%emt 0:01:40]} 56. Rc4 {[%emt 0:01:19]} Rd7 {[%emt 0:01:38]} 57. R4c2 {[%emt 0:01:14]} Rd4 {[%emt 0:00:20]} 58. Ne3 {[%emt 0:00:43]} Rd7 {[%emt 0:02:39]} 59. Nd5 {[%emt 0:00:25]} Nf5 {[%emt 0:00:35]} 60. Qg4 {[%emt 0:01:01]} Nd4 {[%emt 0:00:22]} 61. Rc4 {[%emt 0:00:08]} a5 {[%emt 0:00:40]} 62. Rb1 {[%emt 0:01:17]} f5 {[%emt 0:00:37]} 63. Qh3 {[%emt 0:00:50]} fxe4 {[%emt 0:00:18]} 64. Rb8 {[%emt 0:00:12]} Rc8 {[%emt 0:01:04]} 65. Rxc8 {[%emt 0:00:25]} Qxc8 {[%emt 0:00:07]} 66. Nb6 {[%emt 0:00:12]} Nf3+ {[%emt 0:00:25]} 67. Qxf3 {[%emt 0:00:42]} 1-0

[Event "ROU-chT 1st League 2019"]
[Site "Mamaia"]
[Date "2019.09.28"]
[Round "8.22"]
[White "Manea, Alexandru"]
[Black "Murariu, Andrei"]
[Result "1/2-1/2"]
[ECO "D37"]
[WhiteElo "2305"]
[BlackElo "2495"]
[Annotator "ChessBase"]
[PlyCount "115"]
[EventDate "2019.09.21"]
[EventType "team-tourn"]
[EventCountry "ROU"]
[SourceTitle "playchess.com"]
[Source "ChessBase"]
[SourceQuality "1"]
[TimeControl "40/5400+30:1800+30"]

1. d4 {[%emt 0:01:08]} d5 {[%emt 0:00:00]} 2. c4 {[%emt 0:00:40]} e6 {[%emt 0:00:03]} 3. Nf3 {[%emt 0:00:20]} Nf6 {[%emt 0:00:26]} 4. Nc3 {[%emt 0:00:06]} Be7 {[%emt 0:01:48]} 5. Qc2 {[%emt 0:00:26]} O-O {[%emt 0:01:04]} 6. cxd5 {[%emt 0:00:34]} exd5 {[%emt 0:00:58]} 7. Bf4 {[%emt 0:00:10]} c6 {[%emt 0:01:55]} 8. h3 {[%emt 0:00:17]} Nbd7 {[%emt 0:03:38]} 9. e3 {[%emt 0:01:43]} Re8 {[%emt 0:00:21]} 10. Bd3 {[%emt 0:00:39]} Nf8 {[%emt 0:00:33]} 11. O-O {[%emt 0:00:09]} Ng6 {[%emt 0:02:05]} 12. Bh2 {[%emt 0:00:12]} Bd6 {[%emt 0:02:35]} 13. Bxd6 {[%emt 0:01:08]} Qxd6 {[%emt 0:00:04]} 14. Rab1 {[%emt 0:03:29]} Qe7 {[%emt 0:04:32]} 15. b4 {[%emt 0:07:00]} a6 {[%emt 0:02:50]} 16. a4 {[%emt 0:08:28]} Ne4 {[%emt 0:00:56]} 17. b5 {[%emt 0:11:13]} axb5 {[%emt 0:29:03]} 18. axb5 {[%emt 0:00:14]} Nh4 {[%emt 0:00:05]} 19. Nxh4 {[%emt 0:15:29]} Qxh4 {[%emt 0:00:12]} 20. Nxe4 {[%emt 0:00:06]} dxe4 {[%emt 0:00:21]} 21. Bc4 {[%emt 0:00:07]} cxb5 {[%emt 0:12:52]} 22. Rxb5 {[%emt 0:11:17]} Ra6 {[%emt 0:08:52]} 23. Re5 {[%emt 0:11:01]} Rxe5 {[%emt 0:00:26]} 24. Bxa6 {[%emt 0:00:47]} Re8 {[%emt 0:00:47]} 25. Bb5 {[%emt 0:13:07]} Rf8 {[%emt 0:00:21]} 26. Qc5 {[%emt 0:00:59]} Be6 {[%emt 0:03:30]} 27. Qe5 {[%emt 0:06:49]} Rd8 {[%emt 0:02:42]} 28. Rc1 {[%emt 0:01:26]} h6 {[%emt 0:00:30]} 29. Bc4 {[%emt 0:01:52]} Rc8 {[%emt 0:10:55]} 30. Qxe6 {[%emt 0:01:49]} fxe6 {[%emt 0:00:08]} 31. Bxe6+ {[%emt 0:00:03]} Kf8 {[%emt 0:00:08]} 32. Rxc8+ {[%emt 0:00:15]} Ke7 {[%emt 0:00:04]} 33. Bd5 {[%emt 0:00:21]} b5 {[%emt 0:05:32]} 34. Rb8 {[%emt 0:00:53]} Qh5 {[%emt 0:00:50]} 35. Rb7+ {[%emt 0:01:14]} Kd6 {[%emt 0:00:27]} 36. Rb6+ {[%emt 0:01:49]} Kc7 {[%emt 0:01:06]} 37. Rb7+ {[%emt 0:00:11]} Kd6 {[%emt 0:00:09]} 38. Rb6+ {[%emt 0:00:05]} Kc7 {[%emt 0:00:04]} 39. Rxb5 {[%emt 0:01:10]} Qd1+ {[%emt 0:00:22]} 40. Kh2 {[%emt 0:00:00]} Qe2 {[%emt 0:00:00]} 41. Rc5+ {[%emt 0:01:32]} Kd6 {[%emt 0:00:46]} 42. Kg3 {[%emt 0:00:21]} h5 {[%emt 0:00:29]} 43. Bxe4 {[%emt 0:04:39]} h4+ {[%emt 0:00:12]} 44. Kxh4 {[%emt 0:00:07]} Qxf2+ {[%emt 0:00:06]} 45. Kg4 {[%emt 0:00:06]} Qxe3 {[%emt 0:01:03]} 46. Rd5+ {[%emt 0:01:34]} Ke6 {[%emt 0:04:29]} 47. Bf3 {[%emt 0:00:37]} Kf6 {[%emt 0:00:41]} 48. Rd6+ {[%emt 0:02:44]} Ke7 {[%emt 0:00:39]} 49. Rd5 {[%emt 0:00:12]} Kf6 {[%emt 0:10:34]} 50. h4 {[%emt 0:01:59]} Qe6+ {[%emt 0:03:32]} 51. Kf4 {[%emt 0:00:53]} Qe1 {[%emt 0:01:39]} 52. Kg4 {[%emt 0:02:53]} Qe6+ {[%emt 0:00:28]} 53. Kf4 {[%emt 0:00:05]} Qe1 {[%emt 0:00:02]} 54. Rf5+ {[%emt 0:05:36]} Kg6 {[%emt 0:00:08]} 55. Rg5+ {[%emt 0:00:07]} Kf6 {[%emt 0:02:41]} 56. Rf5+ {[%emt 0:00:13]} Kg6 {[%emt 0:00:04]} 57. Rg5+ {[%emt 0:02:48]} Kf6 {[%emt 0:00:26]} 58. Rf5+ {[%emt 0:09:48] Ke5+ Ke4+} 1/2-1/2

[Event "ROU-chT 1st League 2019"]
[Site "Mamaia"]
[Date "2019.09.28"]
[Round "8.23"]
[White "Mateuta, Gabriel"]
[Black "Szabo, Attila"]
[Result "1-0"]
[ECO "D30"]
[WhiteElo "2514"]
[BlackElo "2239"]
[Annotator "ChessBase"]
[PlyCount "65"]
[EventDate "2019.09.21"]
[EventType "team-tourn"]
[EventCountry "ROU"]
[SourceTitle "playchess.com"]
[Source "ChessBase"]
[SourceQuality "1"]
[TimeControl "40/5400+30:1800+30"]

1. d4 {[%emt 0:00:00]} d5 {[%emt 0:00:48]} 2. Nf3 {[%emt 0:00:00]} Nf6 {[%emt 0:00:37]} 3. c4 {[%emt 0:00:03]} e6 {[%emt 0:01:01]} 4. Bg5 {[%emt 0:00:51]} Be7 {[%emt 0:02:05]} 5. Nc3 {[%emt 0:01:09]} O-O {[%emt 0:00:23]} 6. cxd5 {[%emt 0:01:52]} exd5 {[%emt 0:02:14]} 7. e3 {[%emt 0:00:07]} c6 {[%emt 0:01:39]} 8. Bd3 {[%emt 0:00:20]} Nbd7 {[%emt 0:04:04]} 9. Qc2 {[%emt 0:00:24]} Re8 {[%emt 0:01:34]} 10. h3 {[%emt 0:01:46]} Nf8 {[%emt 0:10:33]} 11. Bf4 {[%emt 0:01:36]} Bd6 {[%emt 0:03:30]} 12. Be5 {[%emt 0:09:17]} Ng6 {[%emt 0:04:37]} 13. Bxd6 {[%emt 0:00:57]} Qxd6 {[%emt 0:00:04]} 14. O-O-O {[%emt 0:00:08]} b6 {[%emt 0:10:31]} 15. g4 {[%emt 0:01:10]} Bb7 {[%emt 0:04:26]} 16. g5 {[%emt 0:02:31]} Nd7 {[%emt 0:00:12]} 17. h4 {[%emt 0:00:48]} Ngf8 {[%emt 0:15:13]} 18. h5 {[%emt 0:21:47]} c5 {[%emt 0:02:24]} 19. g6 {[%emt 0:03:43]} fxg6 {[%emt 0:01:10]} 20. hxg6 {[%emt 0:02:45]} h6 {[%emt 0:00:08]} 21. Bf5 {[%emt 0:10:52]} a6 {[%emt 0:04:59]} 22. dxc5 {[%emt 0:11:37]} bxc5 {[%emt 0:01:57]} 23. Qb3 {[%emt 0:00:27]} Nb6 {[%emt 0:08:13]} 24. Na4 {[%emt 0:01:31]} Nxa4 {[%emt 0:00:27]} 25. Qxb7 {[%emt 0:02:01]} Qf6 {[%emt 0:01:02]} 26. Qf7+ {[%emt 0:10:00]} Qxf7 {[%emt 0:00:40]} 27. gxf7+ {[%emt 0:00:01]} Kxf7 {[%emt 0:00:13]} 28. Rxd5 {[%emt 0:00:02]} Rab8 {[%emt 0:07:55]} 29. Bc2 {[%emt 0:02:09]} Nxb2 {[%emt 0:04:24]} 30. Rxc5 {[%emt 0:00:13]} Ne6 {[%emt 0:00:17]} 31. Rc3 {[%emt 0:02:30]} Rb4 {[%emt 0:01:04]} 32. Rb3 {[%emt 0:03:43]} Reb8 {[%emt 0:01:21]} 33. Kxb2 {[%emt 0:00:26]} 1-0

[Event "ROU-chT 1st League 2019"]
[Site "Mamaia"]
[Date "2019.09.28"]
[Round "8.24"]
[White "Vasiesiu, Victor"]
[Black "Ognean, Mihnea-Ionut"]
[Result "1/2-1/2"]
[ECO "B31"]
[WhiteElo "2251"]
[BlackElo "2285"]
[Annotator "NA"]
[PlyCount "49"]
[EventDate "2019.09.21"]
[EventType "team-tourn"]
[EventCountry "ROU"]
[SourceTitle "playchess.com"]
[Source "ChessBase"]
[SourceQuality "1"]
[TimeControl "40/5400+30:1800+30"]

1. e4 {[%emt 0:00:49]} c5 {[%emt 0:00:00]} 2. Nf3 {[%emt 0:00:09]} Nc6 {[%emt 0:00:00]} 3. Bb5 {[%emt 0:00:15]} g6 {[%emt 0:00:00]} 4. c3 {[%emt 0:00:10]} Bg7 {[%emt 0:00:44]} 5. d4 {[%emt 0:00:18]} cxd4 {[%emt 0:00:10]} 6. cxd4 {[%emt 0:00:06]} Nf6 {[%emt 0:00:03]} 7. Qe2 {[%emt 0:02:09]} d5 {[%emt 0:03:17]} 8. e5 {[%emt 0:00:10]} Ne4 {[%emt 0:00:40]} 9. O-O {[%emt 0:00:09]} O-O {[%emt 0:03:45]} 10. Rd1 {[%emt 0:00:11]} f6 {[%emt 0:11:53]} 11. Nc3 {[%emt 0:00:14]} Nxc3 {[%emt 0:00:15]} 12. bxc3 {[%emt 0:00:05]} Bg4 {[%emt 0:00:05]} 13. Bxc6 {[%emt 0:00:04]} bxc6 {[%emt 0:00:09]} 14. e6 {[%emt 0:00:04]} g5 {[%emt 0:07:12]} 15. Ba3 {[%emt 0:04:18]} Bf5 {[%emt 0:02:23]} 16. Bc5 {[%emt 0:04:19]} Qc7 {[%emt 0:04:42]} 17. Re1 {[%emt 0:13:23]} Rab8 {[%emt 0:09:38]} 18. h3 {[%emt 0:11:28]} Rb7 {[%emt 0:05:47]} 19. Qe3 {[%emt 0:05:00]} h5 {[%emt 0:14:42]} 20. Nd2 {[%emt 0:09:11]} Bh6 {[%emt 0:01:15]} 21. Nf1 {[%emt 0:02:15]} Bg6 {[%emt 0:02:30]} 22. Qf3 {[%emt 0:11:02]} f5 {[%emt 0:01:42]} 23. Re5 {[%emt 0:14:49]} Kh7 {[%emt 0:01:47]} 24. c4 {[%emt 0:02:02]} g4 {[%emt 0:03:27]} 25. Qc3 {[%emt 0:05:11]} 1/2-1/2